bitfinex/quotes_ETHUSD_20250213
["timestamp","ask_amount","ask_price","bid_price","bid_amount"]
[1739482513776,3.74153,2672.7,2672.1,3.74236]
[1739482513777,3.74169,2672.6,2672.1,3.74236]
[1739482513977,3.74153,2672.7,2672.1,0.748478]
[1739482514238,0.6339,2672.8,2672.3,3.74201]
[1739482514454,0.9219,2672.8,2672.2,3.7422]
[1739482514660,4.6633,2672.8,2672.3,3.74209]
[1739482514993,3.74205,2672.4,2671.9,3.74256]
[1739482515301,0.0075,2672.5,2671.9,4.198876]
[1739482515688,0.0075,2672.5,2672.0,3.74251]
[1739482515798,0.0075,2672.5,2671.9,4.198876]
[1739482515997,3.74196,2672.4,2671.9,3.74256]
[1739482516310,3.7496,2672.3,2671.9,3.74256]
[1739482516635,0.6414,2672.3,2671.8,3.7427]
[1739482516846,2.253,2672.2,2671.9,3.74259]
[1739482517591,2.253,2672.2,2671.8,3.7427]
[1739482518032,0.0075,2672.1,2671.6,1.1022]
[1739482518235,2.253,2671.9,2671.6,1.1022]
[1739482518404,3.74289,2671.8,2671.6,1.1022]
[1739482518808,2.253,2671.9,2671.6,1.1022]
[1739482519009,2.253,2672.1,2671.7,3.74293]
[1739482519225,2.541,2672.2,2671.9,3.74256]
[1739482519396,0.288,2672.5,2671.9,0.03742527]
[1739482519738,4.66322,2672.9,2672.3,7.48397]
[1739482519935,4.37516,2672.9,2672.4,3.74182]
[1739482520138,6.62816,2672.9,2672.4,3.74182]
[1739482520340,2.8869,2672.9,2672.3,0.827077]
[1739482520661,2.253,2672.9,2672.4,3.74185]
[1739482520946,5.99432,2672.9,2672.4,3.74185]
[1739482521235,5.99432,2672.9,2672.2,0.7868]
[1739482521236,2.253,2672.9,2672.2,0.7868]
[1739482521414,2.253,2672.9,2672.5,3.74172]
[1739482522441,2.2605,2673.1,2672.7,3.74148]
[1739482522637,2.2605,2673.1,2672.7,4.115628]
[1739482522962,3.74123,2673.0,2672.7,0.374148]
[1739482523271,3.74123,2673.0,2672.4,3.74195]
[1739482523403,3.74123,2673.0,2672.5,3.74176]
[1739482524154,5.99398,2673.1,2672.6,3.7416]
[1739482524503,3.74115,2673.0,2672.4,7.48377]
[1739482524740,3.74115,2673.0,2672.5,4.490147]
[1739482525017,5.99378,2673.3,2672.8,3.74128]
[1739482525265,9.73459,2673.3,2672.8,3.74128]
[1739482525402,5.99378,2673.3,2672.8,3.74128]
[1739482525822,3.74104,2673.1,2672.7,0.7598]
[1739482526263,3.74113,2673.0,2672.7,0.7598]
[1739482526753,3.74113,2673.0,2672.5,4.490187]
[1739482526996,3.74113,2673.0,2672.6,4.6461867]
[1739482527305,3.74083,2673.2,2672.7,3.74145]
[1739482527706,3.74097,2673.1,2672.7,3.74145]
[1739482527885,3.74097,2673.1,2672.6,4.6461767]
[1739482528198,5.99397,2673.1,2672.6,4.6461767]
[1739482528543,3.74134,2672.9,2672.6,0.9045167]
[1739482528737,3.74134,2672.9,2672.4,4.55496]
[1739482529008,3.74118,2673.0,2672.4,4.55496]
[1739482529181,2.253,2673.1,2672.6,3.74157]
[1739482529341,5.99404,2673.1,2672.6,3.74157]
[1739482529902,5.99404,2673.1,2672.7,3.7415]
[1739482529903,2.253,2673.1,2672.7,3.7415]
[1739482530079,6.28813,2673.4,2672.8,3.74131]
[1739482530277,3.74089,2673.2,2672.7,0.748307]
[1739482530639,5.99371,2673.3,2672.7,0.748307]
[1739482530640,3.74098,2673.1,2672.7,0.748307]
[1739482531398,5.99379,2673.3,2672.7,0.748307]
[1739482531605,3.74089,2673.2,2672.7,4.489797]
[1739482532131,3.74126,2672.9,2672.5,3.74179]
[1739482532333,3.74126,2672.9,2672.4,0.8131]
[1739482532633,3.74126,2672.9,2672.5,0.08964743]
[1739482532931,5.99403,2673.1,2672.5,0.08964743]
[1739482533132,3.74091,2673.2,2672.7,3.74153]
[1739482533432,2.253,2673.3,2672.8,0.08920868]
[1739482533642,3.74084,2673.2,2672.8,0.08920868]
[1739482533792,7.48181,2673.2,2672.7,3.74147]
[1739482533990,7.48181,2673.2,2672.9,0.08920868]
[1739482534192,3.74108,2673.1,2672.5,3.74171]
[1739482534406,3.74091,2673.2,2673.0,0.08920868]
[1739482534697,3.74113,2673.0,2672.6,3.74164]
[1739482534897,3.74134,2672.9,2672.7,0.08920868]
[1739482535208,3.74134,2672.9,2672.4,8.29681]
[1739482535392,3.74113,2673.0,2672.8,0.08920868]
[1739482535738,3.74125,2672.9,2672.4,9.126461]
[1739482536636,3.74125,2672.9,2672.4,5.384611]
[1739482536836,2.253,2672.8,2672.4,5.384611]
[1739482537540,2.253,2672.8,2672.5,3.7417]
[1739482537739,2.253,2672.8,2672.5,4.6543311]
[1739482537911,2.253,2672.9,2672.5,4.6543311]
[1739482538492,5.99432,2672.9,2672.5,4.6543311]
[1739482538691,2.253,2672.9,2672.5,3.7417]
[1739482539097,5.99426,2672.9,2672.5,3.7417]
[1739482540136,2.253,2672.7,2672.4,4.55504]
[1739482540299,2.253,2672.7,2672.5,3.74171]
[1739482540494,2.253,2672.7,2672.6,3.74167]
[1739482541140,3.74105,2673.1,2672.4,4.55492]
[1739482541141,2.253,2672.8,2672.4,4.55492]
[1739482541506,2.253,2672.8,2672.6,3.74167]
[1739482542332,2.253,2672.7,2672.6,3.74167]
[1739482542940,2.253,2672.7,2672.5,3.74178]
[1739482543242,2.253,2672.8,2672.4,4.55504]
[1739482543451,5.99445,2672.8,2672.4,0.8131]
[1739482543597,2.253,2672.6,2672.2,3.74213]
[1739482544346,2.253,2672.6,2672.3,3.74203]
[1739482544844,2.253,2672.6,2672.2,3.74213]
[1739482545503,2.253,2672.6,2672.1,0.7777]
[1739482545725,5.99475,2672.6,2672.2,3.83166909]
[1739482546438,2.253,2672.6,2672.3,3.74205]
[1739482546748,2.253,2672.6,2672.4,0.08971208]
[1739482548710,2.253,2672.6,2672.2,3.74221]
[1739482548909,2.253,2672.6,2672.3,0.08971208]
[1739482549115,2.253,2672.6,2672.2,3.74221]
[1739482549353,2.253,2672.6,2672.3,0.08971208]
[1739482549818,0.0075,2672.5,2672.1,3.7423]
[1739482550024,0.0075,2672.5,2672.4,0.08971208]
[1739482550232,0.0075,2672.5,2672.2,3.7422]
[1739482550643,0.0075,2672.5,2672.3,0.0902581]
[1739482551157,0.0075,2672.5,2672.4,0.0902581]
[1739482551646,0.0075,2672.6,2672.2,7.48435]
[1739482551855,2.2605,2672.4,2671.8,0.8291]
[1739482552050,2.253,2671.9,2671.5,3.74313]
[1739482552235,2.253,2671.9,2671.4,3.74331]
[1739482552548,6.00343,2671.7,2671.1,0.7571]
[1739482552731,2.253,2671.7,2671.1,0.7571]
[1739482552922,6.00343,2671.7,2671.1,0.7571]
[1739482553386,6.00343,2671.7,2671.0,0.34594788]
[1739482553560,6.63733,2671.7,2671.0,0.34594788]
[1739482554449,10.8029878,2671.7,2670.8,0.7571]
[1739482554650,10.8029878,2671.7,2670.8,3.74413]
[1739482554951,20.1759878,2671.7,2670.7,3.74432]
[1739482555327,25.1759878,2671.7,2670.6,0.7571]
[1739482555527,2.253,2670.8,2670.3,0.7943]
[1739482555726,3.74419,2670.9,2670.3,0.7943]
[1739482555727,5.99751,2670.6,2670.3,0.7943]
[1739482555951,9.74211,2670.6,2670.0,4.53952]
[1739482556155,3.74462,2670.5,2670.0,4.53952]
[1739482556308,5.99777,2670.4,2670.0,0.7943]
[1739482556712,5.99777,2670.4,2669.8,3.74557]
[1739482556713,3.74477,2670.4,2669.8,3.74557]
[1739482556914,3.74477,2670.4,2669.8,5.289007]
[1739482557469,3.74477,2670.4,2669.8,5.288937]
[1739482557640,0.0075,2670.2,2669.8,0.7943]
[1739482557846,0.0075,2670.2,2669.8,4.53988]
[1739482558054,0.0075,2670.2,2669.8,0.7943]
[1739482558261,3.74525,2670.1,2669.5,4.55907]
[1739482558568,3.75263,2670.2,2669.5,5.389587]
[1739482558733,3.75263,2670.2,2669.6,3.74586]
[1739482558936,3.74531,2670.0,2669.5,1.643617]
[1739482559760,3.74531,2670.0,2669.5,0.8131]
[1739482559960,4.03558,2670.2,2669.5,0.8131]
[1739482560272,0.283,2670.2,2669.6,0.03745634]
[1739482560441,0.283,2670.2,2669.7,3.74573]
[1739482560843,4.02805,2670.2,2669.8,0.08531296]
[1739482561044,3.74519,2670.1,2669.8,0.08531296]
[1739482561358,3.74546,2669.9,2669.4,3.74614]
[1739482561859,4.37936,2669.9,2669.4,3.74614]
[1739482562235,0.0075,2669.8,2669.3,3.74622]
[1739482562545,0.0075,2669.8,2669.2,8.30886]
[1739482562758,5.3275,2669.8,2669.2,4.56245]
[1739482562962,3.74576,2669.7,2669.2,4.56253]
[1739482563272,3.75365,2669.5,2668.9,0.769]
[1739482563473,4.38014,2669.4,2668.7,6.50944962]
[1739482563772,8.1263,2669.4,2668.8,3.74687]
[1739482563983,0.0075,2669.3,2668.8,3.74687]
[1739482564279,5.32,2669.7,2669.0,3.7466]
[1739482564433,3.74589,2669.6,2668.8,1.02564096]
[1739482564643,5.32,2669.7,2668.7,2.76232962]
[1739482564840,3.6156578,2670.2,2669.0,0.8319]
[1739482564841,4.37919,2670.1,2669.0,0.8319]
[1739482565084,0.9179,2670.1,2669.1,3.6081578]
[1739482565285,0.0075,2670.0,2669.5,3.74592]
[1739482565454,0.0075,2670.0,2669.6,3.74579]
[1739482565660,0.0075,2670.0,2669.7,3.7456]
[1739482565997,5.604,2670.2,2669.9,3.74537]
[1739482566151,0.6339,2670.4,2670.3,3.74489]
[1739482566481,5.32,2670.5,2670.4,3.74475]
[1739482566990,5.32,2670.5,2670.3,3.74476]
[1739482567164,5.32,2670.5,2670.4,3.74475]
[1739482568843,0.284,2670.9,2670.7,3.74422]
[1739482569087,5.32,2671.1,2670.7,4.57472]
[1739482569255,0.6414,2671.0,2670.2,0.8305]
[1739482569460,3.74413,2670.9,2670.4,3.74468]
[1739482569656,4.38539,2671.0,2670.4,3.74468]
[1739482569850,4.38539,2671.0,2670.3,3.74487]
[1739482570043,0.0075,2670.7,2670.2,8.32042]
[1739482570249,0.0075,2670.7,2670.2,4.5754]
[1739482570678,0.0075,2670.7,2670.2,3.7449]
[1739482571494,0.0075,2670.7,2670.0,0.03744851]
[1739482571661,0.0075,2670.7,2670.0,0.38679485]
[1739482571988,2.2605,2670.7,2670.0,0.38679485]
[1739482572190,2.2605,2670.7,2670.1,3.74517]
[1739482572400,2.2605,2670.7,2670.3,3.74481]
[1739482572552,2.2605,2670.7,2670.4,3.74473]
[1739482572753,2.253,2670.8,2670.5,3.74453]
[1739482572994,3.74427,2670.8,2670.3,3.74482]
[1739482573153,3.75184,2670.7,2670.0,4.13201485]
[1739482573358,6.00484,2670.7,2670.0,4.13201485]
[1739482573668,0.0075,2670.5,2669.9,3.74545]
[1739482573993,0.0075,2670.5,2670.1,3.74504]
[1739482574168,6.0052,2670.5,2669.6,0.791]
[1739482574365,6.63167,2670.4,2669.6,0.791]
[1739482574559,6.63167,2670.4,2669.9,3.7454]
[1739482575055,0.0075,2670.3,2669.9,3.7454]
[1739482575265,3.74503,2670.2,2669.7,3.74564]
[1739482575566,3.75247,2670.3,2669.8,3.74557]
[1739482575790,0.0075,2670.3,2669.9,3.74538]
[1739482576007,0.0075,2670.3,2669.9,3.82449389]
[1739482577112,0.0075,2670.3,2669.9,0.07911389]
[1739482577410,0.0075,2670.3,2670.0,3.74531]
[1739482577613,0.0075,2670.3,2670.0,3.82442389]
[1739482577782,0.0075,2670.3,2670.0,3.82433389]
[1739482577978,0.0075,2670.3,2670.1,3.7451]
[1739482578311,5.32,2670.4,2670.3,3.74489]
[1739482578687,5.32,2670.4,2670.3,3.82401366]
[1739482578864,5.32,2670.4,2670.3,0.07912366]
[1739482579407,5.32,2670.4,2670.0,3.74521]
[1739482579408,5.32,2670.4,2670.0,7.49042]
[1739482579656,5.3275,2670.4,2670.3,0.07897714]
[1739482579838,5.3275,2670.4,2670.0,3.74521]
[1739482579971,5.3275,2670.4,2670.3,0.07897714]
[1739482580318,5.3275,2670.4,2670.0,3.74521]
[1739482580814,5.3275,2670.4,2670.1,0.07897714]
[1739482581134,9.07228,2670.4,2670.1,0.07897714]
[1739482581331,0.6414,2670.3,2670.1,0.07897714]
[1739482581630,3.74503,2670.2,2669.6,3.74578]
[1739482581920,2.253,2669.9,2669.4,4.51446]
[1739482582127,2.253,2669.9,2669.5,3.7459]
[1739482582294,2.253,2669.9,2669.2,3.74633]
[1739482582623,5.99854,2669.9,2669.2,0.451473]
[1739482582829,2.253,2669.9,2669.3,3.7463]
[1739482583129,3.74534,2670.0,2668.9,3.74679]
[1739482583130,5.99918,2669.4,2668.9,3.74675]
[1739482583329,2.253,2669.4,2669.0,3.74664]
[1739482583809,0.6339,2670.1,2669.1,3.6081578]
[1739482583968,2.253,2670.0,2669.2,1.17641578]
[1739482584168,0.284,2670.4,2669.8,3.74548]
[1739482584169,0.9179,2670.4,2669.8,3.74548]
[1739482584375,0.0075,2670.3,2669.8,3.74554]
[1739482584777,3.74506,2670.2,2669.6,7.49159]
[1739482584989,5.99818,2670.1,2669.6,3.74576]
[1739482585416,5.99833,2670.0,2669.5,3.74599]
[1739482585633,2.253,2669.8,2669.4,3.74614]
[1739482585793,5.99861,2669.8,2669.2,7.92271578]
[1739482585995,6.63251,2669.8,2669.3,4.89930736]
[1739482587023,2.253,2669.6,2669.2,3.7463]
[1739482587245,5.99888,2669.6,2669.1,3.74653]
[1739482588053,2.253,2669.4,2668.9,0.7719]
[1739482588354,2.253,2669.4,2669.0,3.74665]
[1739482588487,2.253,2669.4,2669.0,5.26255208]
[1739482588893,5.99923,2669.4,2669.0,1.51590208]
[1739482590397,5.99923,2669.4,2668.8,3.28541296]
[1739482590595,2.253,2669.2,2668.8,3.28541296]
[1739482590842,2.253,2669.2,2668.9,0.08032537]
[1739482591045,5.99947,2669.2,2668.9,0.08032537]
[1739482591832,3.74616,2669.4,2668.9,0.08032537]
[1739482592049,3.74616,2669.4,2668.9,3.82716537]
[1739482592352,7.49272,2669.3,2668.9,0.08032537]
[1739482592500,0.6414,2669.4,2668.9,0.08032537]
[1739482592700,3.74651,2669.2,2668.9,0.08032537]
[1739482592897,7.4927,2669.3,2668.9,0.08032537]
[1739482593151,3.74648,2669.2,2668.9,0.08032537]
[1739482593317,7.49271,2669.3,2668.9,0.08032537]
[1739482593517,3.7463,2669.3,2668.9,0.08032537]
[1739482593717,7.4927,2669.3,2668.9,0.08032537]
[1739482593933,3.74651,2669.2,2668.9,0.08032537]
[1739482594129,7.49303,2669.2,2668.9,0.08032537]
[1739482594333,0.6414,2669.4,2668.9,0.08032537]
[1739482594334,3.75422,2669.0,2668.9,0.08032537]
[1739482594547,0.6339,2669.4,2668.9,0.08032537]
[1739482594760,3.74685,2669.0,2668.4,3.74752]
[1739482594966,3.74651,2669.2,2668.6,3.74716]
[1739482595278,3.74674,2669.0,2668.5,0.451632]
[1739482595438,3.74674,2669.0,2668.7,0.07826259]
[1739482595646,3.74674,2669.0,2668.5,4.198982]
[1739482595844,3.74674,2669.0,2668.8,0.07826259]
[1739482596051,3.74674,2669.0,2668.6,3.74725]
[1739482596267,7.38016,2669.4,2668.9,0.07826259]
[1739482596472,3.74624,2669.4,2668.9,4.50656]
[1739482596646,3.74624,2669.4,2669.0,0.07826259]
[1739482597340,3.74637,2669.3,2669.0,0.07826259]
[1739482598758,3.74624,2669.4,2669.0,0.07826259]
[1739482598931,3.74652,2669.2,2669.0,0.07826259]
[1739482599126,3.74624,2669.4,2669.0,0.07826259]
[1739482599331,3.7463,2669.3,2668.8,3.74699]
[1739482599685,3.7463,2669.3,2668.8,0.90768132]
[1739482599823,3.7463,2669.3,2668.9,0.07826259]
[1739482600023,7.4927,2669.3,2668.9,0.07826259]
[1739482600275,3.7463,2669.3,2668.9,0.07826259]
[1739482600423,3.74645,2669.2,2668.9,0.07826259]
[1739482600623,3.7463,2669.3,2668.9,0.07826259]
[1739482600892,3.74658,2669.1,2668.9,0.07826259]
[1739482601322,3.7463,2669.3,2668.9,0.07826259]
[1739482601724,2.253,2669.2,2668.9,0.07826259]
[1739482602357,5.9995,2669.2,2668.9,0.07826259]
[1739482602572,2.253,2669.2,2668.9,0.07826259]
[1739482602807,5.99968,2669.1,2668.6,4.53526]
[1739482603010,9.74634,2669.1,2669.0,0.07826259]
[1739482603214,9.74634,2669.1,2668.6,4.53526]
[1739482603413,5.99966,2669.1,2669.0,0.07826259]
[1739482603590,5.99966,2669.1,2668.7,3.74712]
[1739482603799,5.99966,2669.1,2669.0,0.07826259]
[1739482603960,5.99966,2669.1,2668.7,3.74712]
[1739482604306,5.99966,2669.1,2668.8,0.07826259]
[1739482604526,5.99966,2669.1,2668.6,8.28238]
[1739482604807,5.99966,2669.1,2668.9,0.07826259]
[1739482605110,5.99966,2669.1,2669.0,0.07826259]
[1739482605409,5.99966,2669.1,2668.7,3.74707]
[1739482605717,2.253,2669.1,2668.8,3.74691]
[1739482605891,9.0661,2669.5,2669.0,3.74669]
[1739482606060,3.74617,2669.4,2669.0,3.74664]
[1739482606265,3.74617,2669.4,2669.1,0.07868297]
[1739482606685,3.74617,2669.4,2669.0,3.74665]
[1739482606884,5.99917,2669.4,2669.2,0.07868297]
[1739482607091,5.99917,2669.4,2669.0,3.74667]
[1739482607311,2.253,2669.4,2669.3,0.07868297]
[1739482607610,3.74608,2669.5,2669.1,4.54437]
[1739482607814,3.74608,2669.5,2669.3,0.07868297]
[1739482608018,2.253,2669.6,2669.1,0.7978]
[1739482608315,3.74601,2669.5,2669.4,0.07868297]
[1739482608458,2.253,2669.6,2669.1,4.54436]
[1739482608663,5.99894,2669.6,2669.4,0.07868297]
[1739482608858,5.99894,2669.6,2669.1,8.29087]
[1739482609079,5.99894,2669.6,2669.5,0.07841902]
[1739482609274,5.99894,2669.6,2669.2,3.74643]
[1739482609275,2.253,2669.6,2669.3,3.74627]
[1739482609509,2.253,2669.6,2669.5,0.07841902]
[1739482609750,2.253,2669.6,2669.2,3.74642]
[1739482609880,2.253,2669.6,2669.5,0.07841902]
[1739482610076,2.253,2669.6,2669.2,3.74642]
[1739482610400,2.253,2669.6,2669.5,0.07841902]
[1739482611028,2.253,2669.6,2669.3,3.74625]
[1739482611323,2.253,2669.6,2669.5,0.07841902]
[1739482611466,2.253,2669.6,2669.3,3.74625]
[1739482611665,2.253,2669.6,2669.5,0.07841902]
[1739482611864,2.253,2669.6,2669.2,4.6584057]
[1739482612065,5.99895,2669.6,2669.5,0.07841902]
[1739482612403,2.253,2669.6,2669.3,3.74629]
[1739482612715,2.253,2669.8,2669.5,3.746]
[1739482613285,2.253,2669.8,2669.6,0.07841902]
[1739482613645,5.99873,2669.7,2669.6,0.07841902]
[1739482614005,5.99873,2669.7,2669.3,3.74624]
[1739482614201,5.99873,2669.7,2669.3,4.575293]
[1739482614534,2.253,2669.7,2669.4,3.82455902]
[1739482614857,5.99877,2669.7,2669.4,0.07841902]
[1739482615341,2.253,2669.7,2669.4,3.82452902]
[1739482616198,2.253,2669.7,2669.5,3.746]
[1739482616421,6.2782,2670.1,2669.6,4.5387]
[1739482616581,6.2782,2670.1,2669.8,3.74553]
[1739482616582,2.252,2670.1,2669.8,3.74553]
[1739482616783,2.252,2670.1,2669.6,0.7929]
[1739482616784,3.74543,2670.0,2669.6,0.7929]
[1739482617442,2.252,2670.0,2669.7,0.07774456]
[1739482617640,3.74559,2669.8,2669.7,0.07774456]
[1739482618011,5.99759,2669.8,2669.3,3.0]
[1739482618393,5.99759,2669.8,2669.4,0.07761751]
[1739482618592,9.74328,2669.8,2669.4,0.07761751]
[1739482619314,5.99759,2669.8,2669.4,0.07761751]
[1739482619510,5.99747,2669.9,2669.4,3.82370751]
[1739482619714,2.252,2669.9,2669.5,3.74599]
[1739482619931,2.252,2669.9,2669.6,4.50206]
[1739482620099,2.252,2669.9,2669.6,4.57967751]
[1739482620290,3.74539,2670.0,2669.6,4.57967751]
[1739482620491,2.252,2670.1,2669.7,3.74572]
[1739482620754,5.99725,2670.1,2669.7,3.74572]
[1739482620950,5.99725,2670.1,2669.8,0.07767615]
[1739482621441,2.252,2670.2,2669.9,3.74539]
[1739482621791,5.99704,2670.2,2669.8,3.82324615]
[1739482621991,5.99704,2670.2,2669.9,0.07766638]
[1739482622195,2.252,2670.2,2669.9,3.82305638]
[1739482622445,2.252,2670.1,2669.9,3.82304638]
[1739482623422,2.252,2670.2,2669.9,3.82304638]
[1739482623950,2.252,2670.2,2669.9,7.56842638]
[1739482624145,2.252,2670.2,2670.1,3.74517]
[1739482624648,0.0075,2670.5,2670.1,3.82283638]
[1739482625803,2.252,2670.4,2670.1,3.82283638]
[1739482626317,2.252,2670.4,2670.1,3.82274638]
[1739482626525,5.99681,2670.4,2670.1,0.07766638]
[1739482626723,5.99681,2670.4,2669.9,3.74536]
[1739482626958,5.99681,2670.4,2670.2,0.07766638]
[1739482627163,5.99681,2670.4,2669.9,3.74536]
[1739482627383,5.99681,2670.4,2670.3,0.07766638]
[1739482627507,5.99681,2670.4,2669.9,7.49074]
[1739482627863,5.99681,2670.4,2669.9,3.74536]
[1739482628068,5.99681,2670.4,2670.0,3.82294638]
[1739482628575,2.252,2670.5,2670.1,3.74505]
[1739482628706,2.252,2670.6,2670.4,3.74475]
[1739482629047,2.252,2670.6,2670.5,0.07668921]
[1739482629634,0.0075,2670.7,2670.5,0.07668921]
[1739482630036,0.0075,2670.7,2670.5,3.82126921]
[1739482630237,2.252,2670.8,2670.5,3.82118921]
[1739482630553,2.252,2670.8,2670.5,0.07668921]
[1739482631528,5.99629,2670.8,2670.5,0.07668921]
[1739482631858,5.99629,2670.8,2670.6,0.07668921]
[1739482632027,5.99629,2670.8,2670.3,6.74487]
[1739482632222,5.99629,2670.8,2670.4,3.82142921]
[1739482632424,2.252,2670.8,2670.5,3.7446]
[1739482632861,2.252,2670.9,2670.6,0.07668921]
[1739482634362,2.252,2670.9,2670.6,3.82108921]
[1739482634564,2.252,2670.9,2670.6,0.83327113]
[1739482634870,2.252,2670.9,2670.6,0.07668921]
[1739482635581,5.99607,2670.9,2670.6,0.07668921]
[1739482636415,2.252,2670.9,2670.6,0.07668921]
[1739482638059,5.9961,2670.9,2670.6,0.07668921]
[1739482639054,3.74392,2671.0,2670.6,0.07668921]
[1739482639055,5.9962,2670.8,2670.6,0.07668921]
[1739482639257,5.9962,2670.8,2670.4,3.74474]
[1739482639465,5.9962,2670.8,2670.7,0.07668921]
[1739482639659,5.9962,2670.8,2670.3,6.74483]
[1739482639900,5.9962,2670.8,2670.7,0.07668921]
[1739482640017,5.9962,2670.8,2670.4,3.74475]
[1739482640218,5.9962,2670.8,2670.5,0.07668921]
[1739482640855,9.74049,2670.8,2670.5,0.07668921]
[1739482641168,3.74434,2670.7,2670.5,0.07668921]
[1739482641455,3.74434,2670.7,2670.3,6.74488]
[1739482641659,3.74434,2670.7,2670.6,0.07627896]
[1739482641859,3.74434,2670.7,2670.3,7.87339]
[1739482642166,3.74434,2670.7,2670.6,0.07627896]
[1739482642360,3.74434,2670.7,2670.3,7.87332]
[1739482642517,2.252,2670.8,2670.6,0.07627896]
[1739482642859,5.99622,2670.8,2670.7,0.07627896]
[1739482643060,5.99622,2670.8,2670.3,6.74479]
[1739482643219,5.99622,2670.8,2670.7,0.07627896]
[1739482643420,5.99622,2670.8,2670.3,6.74479]
[1739482643617,5.99599,2671.0,2670.4,0.07627896]
[1739482643823,2.252,2671.0,2670.6,3.74437]
[1739482644048,2.252,2671.0,2670.7,3.82054896]
[1739482644260,2.252,2671.0,2670.7,4.64684896]
[1739482644463,2.252,2671.0,2670.9,3.74405]
[1739482644668,2.252,2671.5,2670.9,3.74405]
[1739482644962,0.0075,2671.4,2671.0,3.74391]
[1739482645146,0.0075,2671.4,2671.1,3.74367]
[1739482645348,2.252,2671.5,2670.7,4.2909849]
[1739482645548,2.252,2671.5,2671.2,4.64574825]
[1739482645868,5.99513,2671.6,2671.3,0.07588825]
[1739482646186,5.99513,2671.6,2671.2,0.8263]
[1739482646361,5.99513,2671.6,2671.4,0.07588825]
[1739482646661,3.74349,2671.3,2671.2,0.8263]
[1739482646864,5.99559,2671.3,2670.9,3.74403]
[1739482647273,5.99559,2671.3,2670.8,4.51089]
[1739482647486,2.252,2671.3,2671.0,3.74385]
[1739482647688,2.252,2671.3,2671.1,3.74364]
[1739482647991,2.252,2671.5,2670.8,1.87870478]
[1739482648163,2.252,2671.5,2671.4,3.74335]
[1739482648490,5.27009643,2671.8,2671.4,4.49685]
[1739482648786,5.27009643,2671.8,2671.5,4.192895]
[1739482648991,5.27009643,2671.8,2671.5,0.449685]
[1739482649159,5.99494,2671.7,2671.3,3.0]
[1739482649361,3.7434,2671.4,2671.1,0.7819]
[1739482649546,5.9953,2671.5,2671.1,0.7819]
[1739482649748,9.73861,2671.5,2671.1,0.7819]
[1739482650089,5.99535,2671.4,2671.0,3.74383]
[1739482650652,2.252,2671.4,2671.0,3.74383]
[1739482650874,2.252,2671.4,2671.1,0.07090891]
[1739482651223,3.74353,2671.3,2671.1,0.07090891]
[1739482651565,3.74353,2671.3,2670.8,6.7441]
[1739482651908,3.74353,2671.3,2670.8,8.22978078]
[1739482652205,2.252,2671.2,2670.9,0.07090891]
[1739482653391,3.74353,2671.3,2670.7,3.7601]
[1739482653392,2.252,2671.0,2670.7,3.7601]
[1739482654066,6.62993,2671.0,2670.3,0.7885]
[1739482654270,2.252,2670.7,2670.3,4.53337]
[1739482654569,2.252,2670.7,2670.3,4.986707]
[1739482654784,2.252,2670.7,2670.4,3.0]
[1739482655177,2.252,2670.7,2670.4,3.74468]
[1739482655508,2.252,2670.7,2670.6,3.74447]
[1739482657664,2.252,2671.1,2670.7,3.74432]
[1739482658933,2.252,2671.2,2670.5,0.8731127]
[1739482659097,2.252,2671.2,2670.8,3.74416]
[1739482659793,5.99565,2671.2,2670.8,3.74416]
[1739482661124,3.74379,2671.1,2670.7,6.74432]
[1739482661428,0.6339,2671.9,2671.0,3.7686]
[1739482661585,3.74261,2672.0,2671.4,3.74334]
[1739482661786,3.74261,2672.0,2671.5,3.74314]
[1739482662296,2.252,2671.9,2671.5,3.74314]
[1739482662506,2.252,2671.8,2671.5,7.48626]
[1739482662712,2.252,2671.8,2671.7,3.74293]
[1739482663533,2.252,2672.0,2671.6,3.74307]
[1739482663846,0.6339,2672.8,2671.7,0.7538]
[1739482664005,0.6339,2672.8,2672.4,3.74193]
[1739482664337,0.6339,2672.8,2672.4,7.4838]
[1739482664485,0.6339,2672.8,2672.4,3.74187]
[1739482664929,2.8859,2672.8,2672.4,3.74187]
[1739482665632,6.6273,2672.8,2672.3,0.7538]
[1739482665783,2.8859,2672.8,2672.3,4.49584]
[1739482665982,2.8859,2672.8,2672.4,0.07024527]
[1739482666870,0.6339,2672.8,2672.4,0.07024527]
[1739482667165,4.37539,2672.8,2672.4,0.07024527]
[1739482667963,4.37539,2672.8,2672.0,7.3505778]
[1739482667964,3.74153,2672.7,2672.0,8.1798278]
[1739482668118,3.74153,2672.7,2672.5,0.07024527]
[1739482668317,3.74167,2672.6,2672.1,7.56025278]
[1739482668754,7.48317,2672.7,2672.1,7.56025278]
[1739482668963,3.74169,2672.6,2672.1,7.56025278]
[1739482669373,3.74169,2672.6,2672.1,0.81798278]
[1739482669374,3.74183,2672.5,2672.1,0.81798278]
[1739482669534,7.48372,2672.5,2672.0,3.7425]
[1739482669720,3.74183,2672.5,2672.0,3.7425]
[1739482670160,9.06917,2672.6,2672.0,3.7425]
[1739482670837,3.74182,2672.5,2671.9,7.48517]
[1739482671037,3.74182,2672.5,2671.9,8.614557]
[1739482671237,3.74182,2672.5,2672.0,3.74249]
[1739482671790,3.74182,2672.5,2671.9,4.129417]
[1739482671954,3.74204,2672.4,2671.9,7.872057]
[1739482672834,0.6339,2672.3,2671.8,0.809]
[1739482673040,4.37601,2672.3,2671.8,3.74273]